[Event "SVK ECo-C Extraliga 2018-19"]
[Site "Slovakia"]
[Date "2019.02.16"]
[Round "5"]
[White "Kriebel, Tadeas"]
[Black "Motuz, Karol"]
[Result "0-1"]
[ECO "C11"]
[WhiteElo "2513"]
[BlackElo "2369"]
[Annotator "ChessBase"]
[PlyCount "76"]
[EventDate "2018.11.10"]
[EventType "team-tourn"]
[EventCountry "SVK"]
[SourceTitle "playchess.com"]
[Source "ChessBase"]
[SourceQuality "1"]
[WhiteTeam "Snina"]
[BlackTeam "Dubnica"]
[TimeControl "40/5400+30:1800+30"]

1. e4 {[%emt 0:00:00]} e6 {[%emt 0:00:00]} 2. d4 {[%emt 0:00:00]} d5 {[%emt 0:00:00]} 3. Nc3 {[%emt 0:00:00]} Nf6 {[%emt 0:00:27]} 4. e5 {[%emt 0:00:02]} Nfd7 {[%emt 0:00:09]} 5. f4 {[%emt 0:00:07]} c5 {[%emt 0:00:08]} 6. Nf3 {[%emt 0:00:04]} Nc6 {[%emt 0:00:42]} 7. Be3 {[%emt 0:00:06]} Be7 {[%emt 0:01:39]} 8. Qd2 {[%emt 0:00:08]} b6 {[%emt 0:01:10]} 9. Be2 {[%emt 0:04:06]} O-O {[%emt 0:00:45]} 10. O-O {[%emt 0:00:22]} f5 {[%emt 0:01:45]} 11. dxc5 {[%emt 0:09:27]} Nxc5 {[%emt 0:01:08]} 12. Bb5 {[%emt 0:00:23]} Bb7 {[%emt 0:02:28]} 13. Bxc6 {[%emt 0:05:34]} Bxc6 {[%emt 0:00:11]} 14. Nd4 {[%emt 0:00:10]} Qc8 {[%emt 0:06:19]} 15. b4 {[%emt 0:01:24]} Ne4 {[%emt 0:20:42]} 16. Nxe4 {[%emt 0:00:06]} dxe4 {[%emt 0:03:34]} 17. c4 {[%emt 0:00:39]} Rd8 {[%emt 0:04:20]} 18. Qb2 {[%emt 0:07:48]} Be8 {[%emt 0:04:50]} 19. Qb3 {[%emt 0:05:40]} Rb8 {[%emt 0:06:20]} 20. Rab1 {[%emt 0:04:02]} Rb7 {[%emt 0:03:27]} 21. Rfc1 {[%emt 0:10:04]} Kf7 {[%emt 0:08:11]} 22. Bf2 {[%emt 0:11:16]} Rc7 {[%emt 0:04:10]} 23. Rc3 {[%emt 0:09:45]} Qa6 {[%emt 0:09:35]} 24. a3 {[%emt 0:20:54]} Ba4 {[%emt 0:02:36]} 25. Qa2 {[%emt 0:01:00]} Rcd7 {[%emt 0:02:44]} 26. Qe2 {[%emt 0:04:07]} Rxd4 {[%emt 0:04:56]} 27. Bxd4 {[%emt 0:00:05]} Rxd4 {[%emt 0:00:05]} 28. Qh5+ {[%emt 0:00:04]} Kg8 {[%emt 0:02:02]} 29. Rh3 {[%emt 0:01:07]} h6 {[%emt 0:01:54]} 30. Qg6 {[%emt 0:00:18]} Qxc4 {[%emt 0:02:43]} 31. Rxh6 {[%emt 0:00:05]} Rd2 {[%emt 0:03:18]} 32. h3 {[%emt 0:00:47]} Qa2 {[%emt 0:01:46]} 33. Rc1 {[%emt 0:01:52]} Rxg2+ {[%emt 0:00:39]} 34. Qxg2 {[%emt 0:00:05]} Qxg2+ {[%emt 0:00:01]} 35. Kxg2 {[%emt 0:00:08]} gxh6 {[%emt 0:00:05]} 36. Rc7 {[%emt 0:00:18]} Bh4 {[%emt 0:01:17]} 37. Rxa7 {[%emt 0:00:05]} Bb5 {[%emt 0:01:01]} 38. a4 {[%emt 0:01:02]} e3 {[%emt 0:00:28]} 0-1

[Event "SVK ECo-C Extraliga 2018-19"]
[Site "Slovakia"]
[Date "2019.02.16"]
[Round "5"]
[White "Vykouk, Jan"]
[Black "Cibickova, Zuzana"]
[Result "1-0"]
[ECO "C55"]
[WhiteElo "2438"]
[BlackElo "2243"]
[Annotator "NA"]
[PlyCount "119"]
[EventDate "2018.11.10"]
[EventType "team-tourn"]
[EventCountry "SVK"]
[SourceTitle "playchess.com"]
[Source "ChessBase"]
[SourceQuality "1"]
[WhiteTeam "Osuske"]
[BlackTeam "Komarno"]
[TimeControl "40/5400+30:1800+30"]

1. e4 {[%emt 0:00:00]} e5 {[%emt 0:00:00]} 2. Nf3 {[%emt 0:00:00]} Nc6 {[%emt 0:00:00]} 3. Bc4 {[%emt 0:00:01]} Nf6 {[%emt 0:00:00]} 4. d3 {[%emt 0:00:06]} Be7 {[%emt 0:00:00]} 5. O-O {[%emt 0:00:18]} O-O {[%emt 0:00:01]} 6. Re1 {[%emt 0:00:03]} d6 {[%emt 0:00:07]} 7. c3 {[%emt 0:00:04]} Na5 {[%emt 0:00:16]} 8. Bb5 {[%emt 0:00:12]} a6 {[%emt 0:00:04]} 9. Ba4 {[%emt 0:00:05]} b5 {[%emt 0:00:03]} 10. Bc2 {[%emt 0:00:07]} c5 {[%emt 0:00:05]} 11. Nbd2 {[%emt 0:00:06]} Nc6 {[%emt 0:00:06]} 12. Nf1 {[%emt 0:01:47]} h6 {[%emt 0:00:19]} 13. Ng3 {[%emt 0:00:27]} Re8 {[%emt 0:00:16]} 14. h3 {[%emt 0:00:31]} Be6 {[%emt 0:00:34]} 15. d4 {[%emt 0:02:09]} cxd4 {[%emt 0:00:22]} 16. cxd4 {[%emt 0:00:07]} exd4 {[%emt 0:00:05]} 17. Nxd4 {[%emt 0:00:27]} Nxd4 {[%emt 0:00:06]} 18. Qxd4 {[%emt 0:00:05]} Rc8 {[%emt 0:00:09]} 19. Qd1 {[%emt 0:01:55]} Qc7 {[%emt 0:10:44]} 20. Bd3 {[%emt 0:00:12]} d5 {[%emt 0:06:36]} 21. e5 {[%emt 0:00:08]} Nd7 {[%emt 0:01:03]} 22. Qh5 {[%emt 0:03:27]} Nc5 {[%emt 0:20:53]} 23. Bb1 {[%emt 0:00:48]} Bf8 {[%emt 0:02:38]} 24. Bd2 {[%emt 0:02:18]} d4 {[%emt 0:05:21]} 25. f4 {[%emt 0:03:13]} Bd5 {[%emt 0:20:46]} 26. Qg4 {[%emt 0:00:45]} Kh8 {[%emt 0:05:28]} 27. Bf5 {[%emt 0:07:27]} Be6 {[%emt 0:03:22]} 28. Bxe6 {[%emt 0:02:05]} Rxe6 {[%emt 0:04:18]} 29. Rac1 {[%emt 0:03:20]} Rc6 {[%emt 0:03:29]} 30. Bb4 {[%emt 0:04:36]} a5 {[%emt 0:07:58]} 31. Bxc5 {[%emt 0:00:28]} Bxc5 {[%emt 0:00:23]} 32. Kh1 {[%emt 0:08:24]} Bf8 {[%emt 0:03:40]} 33. Rxc6 {[%emt 0:03:20]} Qxc6 {[%emt 0:00:01]} 34. Rd1 {[%emt 0:00:15]} Rd8 {[%emt 0:00:40]} 35. Qf5 {[%emt 0:01:29]} Qd5 {[%emt 0:02:37]} 36. Qd3 {[%emt 0:08:10]} Qxa2 {[%emt 0:00:49]} 37. Qxb5 {[%emt 0:00:06]} d3 {[%emt 0:02:40]} 38. Ne4 {[%emt 0:01:54]} Qd5 {[%emt 0:01:02]} 39. Qxd5 {[%emt 0:00:31]} Rxd5 {[%emt 0:00:00]} 40. g3 {[%emt 0:00:20]} Rd4 {[%emt 0:00:56]} 41. Nf2 {[%emt 0:30:10]} d2 {[%emt 0:30:27]} 42. Kg2 {[%emt 0:00:04]} Bb4 {[%emt 0:01:41]} 43. Kf3 {[%emt 0:00:14]} a4 {[%emt 0:00:00]} 44. Ke3 {[%emt 0:00:00]} Rc4 {[%emt 0:00:00]} 45. Kd3 {[%emt 0:00:00]} Rc8 {[%emt 0:00:00]} 46. Ke2 {[%emt 0:00:00]} Ba5 {[%emt 0:00:00]} 47. Nd3 {[%emt 0:00:00]} h5 {[%emt 0:00:00]} 48. f5 {[%emt 0:00:00]} Kh7 {[%emt 0:00:00]} 49. Rf1 {[%emt 0:00:00]} Rc4 {[%emt 0:00:00]} 50. Ke3 {[%emt 0:00:00]} Rc6 {[%emt 0:00:00]} 51. Kd4 {[%emt 0:00:00]} Rc8 {[%emt 0:00:44]} 52. Rd1 {[%emt 0:00:00]} Bb6+ {[%emt 0:03:09]} 53. Kd5 {[%emt 0:00:00]} Be3 {[%emt 0:01:09]} 54. e6 {[%emt 0:00:00]} fxe6+ {[%emt 0:00:05]} 55. fxe6 {[%emt 0:00:00]} Kg8 {[%emt 0:00:27]} 56. Ne5 {[%emt 0:00:00]} Bg5 {[%emt 0:01:39]} 57. Nc6 {[%emt 0:00:00]} Re8 {[%emt 0:00:29]} 58. h4 {[%emt 0:00:00]} Be3 {[%emt 0:00:02]} 59. Kd6 {[%emt 0:00:00]} Bf2 {[%emt 0:01:04]} 60. Kd7 {[%emt 0:00:00]} 1-0

[Event "SVK ECo-C Extraliga 2018-19"]
[Site "Slovakia"]
[Date "2019.02.16"]
[Round "5"]
[White "Piesik, Piotr"]
[Black "Mrva, Martin"]
[Result "1/2-1/2"]
[ECO "A41"]
[WhiteElo "2420"]
[BlackElo "2419"]
[Annotator "NA"]
[PlyCount "162"]
[EventDate "2018.11.10"]
[EventType "team-tourn"]
[EventCountry "SVK"]
[SourceTitle "playchess.com"]
[Source "ChessBase"]
[SourceQuality "1"]
[WhiteTeam "Dubnica"]
[BlackTeam "Snina"]
[TimeControl "40/5400+30:1800+30"]

1. d4 {[%emt 0:00:00]} d6 {[%emt 0:00:18]} 2. Nf3 {[%emt 0:00:35]} a6 {[%emt 0:00:34]} 3. e4 {[%emt 0:07:04]} Nf6 {[%emt 0:02:24]} 4. Nbd2 {[%emt 0:00:35]} g6 {[%emt 0:02:31]} 5. Bd3 {[%emt 0:07:04]} Bg7 {[%emt 0:00:21]} 6. O-O {[%emt 0:00:05]} O-O {[%emt 0:03:00]} 7. Qe2 {[%emt 0:05:59]} Nc6 {[%emt 0:04:46]} 8. c3 {[%emt 0:00:50]} Re8 {[%emt 0:05:42]} 9. b4 {[%emt 0:15:36]} e5 {[%emt 0:04:25]} 10. d5 {[%emt 0:00:26]} Ne7 {[%emt 0:00:56]} 11. c4 {[%emt 0:09:58]} c6 {[%emt 0:03:55]} 12. Bb2 {[%emt 0:09:13]} cxd5 {[%emt 0:24:13]} 13. cxd5 {[%emt 0:00:04]} Nexd5 {[%emt 0:00:11]} 14. exd5 {[%emt 0:00:06]} Nxd5 {[%emt 0:00:06]} 15. Rfe1 {[%emt 0:14:09]} Nf4 {[%emt 0:07:47]} 16. Qf1 {[%emt 0:00:11]} Nxd3 {[%emt 0:00:59]} 17. Qxd3 {[%emt 0:00:06]} e4 {[%emt 0:01:31]} 18. Nxe4 {[%emt 0:07:24]} Bxb2 {[%emt 0:00:52]} 19. Nxd6 {[%emt 0:00:34]} Rxe1+ {[%emt 0:13:37]} 20. Rxe1 {[%emt 0:00:11]} Be6 {[%emt 0:00:13]} 21. Qc2 {[%emt 0:06:14]} Bg7 {[%emt 0:04:24]} 22. Nxb7 {[%emt 0:01:39]} Qd5 {[%emt 0:01:55]} 23. Nc5 {[%emt 0:03:06]} Qxa2 {[%emt 0:00:55]} 24. Qd3 {[%emt 0:00:18]} Qc4 {[%emt 0:01:34]} 25. Qe3 {[%emt 0:03:08]} Bd5 {[%emt 0:03:25]} 26. Rb1 {[%emt 0:01:29]} Rd8 {[%emt 0:02:24]} 27. h3 {[%emt 0:00:37]} Ba8 {[%emt 0:01:01]} 28. Qe7 {[%emt 0:01:24]} Rf8 {[%emt 0:02:54]} 29. Nd7 {[%emt 0:01:23]} Qe4 {[%emt 0:02:20]} 30. Qxe4 {[%emt 0:03:04]} Bxe4 {[%emt 0:00:09]} 31. Re1 Rd8 {[%emt 0:00:50]} 32. Rxe4 {[%emt 0:00:08]} Rxd7 {[%emt 0:00:03]} 33. Re8+ {[%emt 0:01:15]} Bf8 {[%emt 0:00:14]} 34. Ra8 {[%emt 0:01:00]} Rd6 {[%emt 0:00:25]} 35. Ne5 {[%emt 0:00:29]} Kg7 {[%emt 0:00:30]} 36. Ra7 {[%emt 0:00:52]} Rd1+ {[%emt 0:04:05]} 37. Kh2 {[%emt 0:00:04]} Bxb4 {[%emt 0:00:51]} 38. Rxf7+ {[%emt 0:01:20]} Kg8 {[%emt 0:00:05]} 39. Ra7 {[%emt 0:00:45]} a5 {[%emt 0:00:20]} 40. Nc6 {[%emt 0:00:47]} Bd6+ {[%emt 0:01:32]} 41. g3 {[%emt 0:30:04]} Rd2 {[%emt 0:30:45]} 42. Kg2 {[%emt 0:00:00]} Bc5 {[%emt 0:00:00]} 43. Rxa5 {[%emt 0:00:00]} Rxf2+ {[%emt 0:00:00]} 44. Kh1 {[%emt 0:00:00]} Bd6 {[%emt 0:00:00]} 45. Ne5 {[%emt 0:00:00]} Re2 {[%emt 0:00:00]} 46. Ra8+ {[%emt 0:00:00]} Kg7 {[%emt 0:00:00]} 47. Ra7+ {[%emt 0:00:00]} Kf6 {[%emt 0:00:00]} 48. Ng4+ {[%emt 0:00:00]} Ke6 {[%emt 0:00:00]} 49. Rxh7 {[%emt 0:00:00]} Bxg3 {[%emt 0:00:00]} 50. Rb7 {[%emt 0:00:00]} g5 {[%emt 0:00:00]} 51. Rb3 {[%emt 0:00:00]} Bf4 {[%emt 0:00:00]} 52. Rf3 {[%emt 0:00:00]} Ra2 {[%emt 0:00:00]} 53. Nf2 {[%emt 0:00:00]} Kf5 {[%emt 0:00:00]} 54. Kg1 {[%emt 0:00:00]} Rc2 {[%emt 0:00:00]} 55. Kf1 {[%emt 0:00:00]} Rc4 {[%emt 0:00:00]} 56. Kg2 {[%emt 0:00:00]} Kg6 {[%emt 0:00:00]} 57. Nd3 {[%emt 0:00:00]} Bd6 {[%emt 0:00:00]} 58. Re3 {[%emt 0:00:00]} Rd4 {[%emt 0:00:00]} 59. Ne5+ {[%emt 0:00:00]} Kf5 {[%emt 0:00:00]} 60. Nf3 {[%emt 0:00:00]} Rb4 {[%emt 0:00:00]} 61. Rd3 {[%emt 0:00:00]} Bf4 {[%emt 0:00:00]} 62. Rd5+ {[%emt 0:00:00]} Kf6 {[%emt 0:02:18]} 63. Nd4 {[%emt 0:00:29]} Rb2+ {[%emt 0:03:53]} 64. Kf3 {[%emt 0:00:05]} Be5 {[%emt 0:00:05]} 65. Ne2 {[%emt 0:01:53]} Rb4 {[%emt 0:01:09]} 66. Rd3 {[%emt 0:00:24]} Kg6 {[%emt 0:00:36]} 67. Ng3 {[%emt 0:01:50]} Rb1 {[%emt 0:00:28]} 68. Re3 {[%emt 0:00:19]} Bf4 {[%emt 0:00:13]} 69. Ra3 {[%emt 0:01:00]} Rb6 {[%emt 0:00:40]} 70. Rd3 {[%emt 0:01:03]} Be5 {[%emt 0:01:39]} 71. Re3 {[%emt 0:01:53]} Bd4 {[%emt 0:00:26]} 72. Re2 {[%emt 0:00:44]} Bc5 {[%emt 0:01:17]} 73. Ne4 {[%emt 0:00:38]} Rb3+ {[%emt 0:00:28]} 74. Kg2 {[%emt 0:00:04]} Be3 {[%emt 0:01:05]} 75. Nd2 {[%emt 0:01:35]} Rc3 {[%emt 0:00:38]} 76. Ne4 {[%emt 0:01:51]} Ra3 {[%emt 0:00:20]} 77. Kf3 {[%emt 0:01:42]} Bf4+ {[%emt 0:02:20]} 78. Kg4 {[%emt 0:00:05]} Ra1 {[%emt 0:00:26]} 79. h4 {[%emt 0:01:12]} Rg1+ {[%emt 0:00:14]} 80. Kf3 {[%emt 0:00:06]} Kf5 {[%emt 0:00:46]} 81. hxg5 {[%emt 0:00:13]} Ke5 1/2-1/2

[Event "SVK ECo-C Extraliga 2018-19"]
[Site "Slovakia"]
[Date "2019.02.16"]
[Round "5"]
[White "Mikrut, Dariusz"]
[Black "Kantorik, Marian"]
[Result "1/2-1/2"]
[ECO "D35"]
[WhiteElo "2380"]
[BlackElo "2224"]
[Annotator "NA"]
[PlyCount "39"]
[EventDate "2018.11.10"]
[EventType "team-tourn"]
[EventCountry "SVK"]
[SourceTitle "playchess.com"]
[Source "ChessBase"]
[SourceQuality "1"]
[WhiteTeam "Prakovce"]
[BlackTeam "Dunajov"]
[TimeControl "40/5400+30:1800+30"]

1. d4 {[%emt 0:03:25]} d5 {[%emt 0:00:00]} 2. c4 {[%emt 0:00:31]} e6 {[%emt 0:00:02]} 3. cxd5 {[%emt 0:01:08]} exd5 {[%emt 0:00:10]} 4. Nc3 {[%emt 0:00:02]} Nf6 {[%emt 0:03:10]} 5. Bg5 {[%emt 0:02:40]} Be7 {[%emt 0:00:53]} 6. e3 {[%emt 0:00:07]} O-O {[%emt 0:00:50]} 7. Bd3 {[%emt 0:00:20]} Nbd7 {[%emt 0:01:12]} 8. Qc2 {[%emt 0:00:18]} c6 {[%emt 0:00:42]} 9. Nge2 {[%emt 0:00:24]} Re8 {[%emt 0:03:51]} 10. h3 {[%emt 0:05:42]} Nf8 {[%emt 0:03:59]} 11. g4 {[%emt 0:05:27]} b5 {[%emt 0:12:19]} 12. O-O-O {[%emt 0:05:41]} a5 {[%emt 0:00:07]} 13. Kb1 {[%emt 0:07:09]} a4 {[%emt 0:00:11]} 14. Ng3 {[%emt 0:03:29]} h6 {[%emt 0:16:40]} 15. Bxf6 {[%emt 0:05:37]} Bxf6 {[%emt 0:00:07]} 16. Nce2 {[%emt 0:07:25]} Bd7 17. e4 {[%emt 0:15:52]} dxe4 {[%emt 0:08:08]} 18. Bxe4 {[%emt 0:01:10]} b4 {[%emt 0:05:28]} 19. Qc4 {[%emt 0:10:23]} Qb6 {[%emt 0:05:29]} 20. f3 {[%emt 0:07:50]} 1/2-1/2

[Event "SVK ECo-C Extraliga 2018-19"]
[Site "Slovakia"]
[Date "2019.02.16"]
[Round "5"]
[White "Jurcik, Martin"]
[Black "Manik, Mikulas"]
[Result "1/2-1/2"]
[ECO "A05"]
[WhiteElo "2346"]
[BlackElo "2384"]
[Annotator "NA"]
[PlyCount "30"]
[EventDate "2018.11.10"]
[EventType "team-tourn"]
[EventCountry "SVK"]
[SourceTitle "playchess.com"]
[Source "ChessBase"]
[SourceQuality "1"]
[WhiteTeam "Dunajov"]
[BlackTeam "Prakovce"]
[TimeControl "40/5400+30:1800+30"]

1. Nf3 {[%emt 0:00:00]} Nf6 {[%emt 0:00:07]} 2. c4 {[%emt 0:00:15]} g6 {[%emt 0:01:12]} 3. b3 {[%emt 0:00:59]} Bg7 {[%emt 0:01:01]} 4. Bb2 {[%emt 0:00:28]} O-O {[%emt 0:02:08]} 5. g3 {[%emt 0:01:47]} d6 {[%emt 0:11:59]} 6. d4 {[%emt 0:01:18]} Bf5 {[%emt 0:09:29]} 7. Bg2 {[%emt 0:03:34]} Nc6 {[%emt 0:02:10]} 8. O-O {[%emt 0:03:46]} Qc8 {[%emt 0:06:34]} 9. d5 {[%emt 0:29:13]} Na5 {[%emt 0:07:21]} 10. Bc3 {[%emt 0:06:29]} b6 {[%emt 0:04:12]} 11. Re1 {[%emt 0:00:27]} c6 12. dxc6 {[%emt 0:12:57]} Nxc6 {[%emt 0:11:48]} 13. Nd4 {[%emt 0:03:30]} Be4 {[%emt 0:08:33]} 14. f3 {[%emt 0:13:25]} Nxd4 {[%emt 0:01:10]} 15. Bxd4 {[%emt 0:00:02]} e5 1/2-1/2

[Event "SVK ECo-C Extraliga 2018-19"]
[Site "Slovakia"]
[Date "2019.02.16"]
[Round "5"]
[White "Jakab, Bela"]
[Black "Cvek, Robert"]
[Result "1/2-1/2"]
[ECO "B22"]
[WhiteElo "2305"]
[BlackElo "2512"]
[Annotator "ChessBase"]
[PlyCount "29"]
[EventDate "2018.11.10"]
[EventType "team-tourn"]
[EventCountry "SVK"]
[SourceTitle "playchess.com"]
[Source "ChessBase"]
[SourceQuality "1"]
[WhiteTeam "Komarno"]
[BlackTeam "Osuske"]
[TimeControl "40/5400+30:1800+30"]

1. e4 {[%emt 0:00:00]} c5 {[%emt 0:00:00]} 2. c3 {[%emt 0:00:00]} Nf6 {[%emt 0:00:36]} 3. e5 {[%emt 0:00:00]} Nd5 {[%emt 0:00:06]} 4. d4 {[%emt 0:00:11]} cxd4 {[%emt 0:00:06]} 5. Nf3 {[%emt 0:00:22]} e6 {[%emt 0:00:16]} 6. cxd4 {[%emt 0:00:09]} b6 {[%emt 0:02:21]} 7. Nc3 {[%emt 0:02:32]} Nxc3 {[%emt 0:00:42]} 8. bxc3 {[%emt 0:00:07]} Qc7 {[%emt 0:00:18]} 9. Bd2 {[%emt 0:01:12]} d6 {[%emt 0:00:13]} 10. Bd3 {[%emt 0:11:27]} Bb7 {[%emt 0:03:39]} 11. O-O {[%emt 0:02:41]} Nd7 {[%emt 0:00:48]} 12. Re1 {[%emt 0:03:26]} dxe5 {[%emt 0:06:42]} 13. Nxe5 {[%emt 0:01:54]} Nxe5 {[%emt 0:00:07]} 14. Rxe5 {[%emt 0:00:57]} Bd6 {[%emt 0:00:08]} 15. Rd5 1/2-1/2

[Event "SVK ECo-C Extraliga 2018-19"]
[Site "Slovakia"]
[Date "2019.02.16"]
[Round "5"]
[White "Krak, Tomas"]
[Black "Vojtek, Vladimir"]
[Result "0-1"]
[ECO "B90"]
[WhiteElo "2304"]
[BlackElo "2282"]
[Annotator "NA"]
[PlyCount "58"]
[EventDate "2018.11.10"]
[EventType "team-tourn"]
[EventCountry "SVK"]
[SourceTitle "playchess.com"]
[Source "ChessBase"]
[SourceQuality "1"]
[WhiteTeam "Snina"]
[BlackTeam "Dubnica"]
[TimeControl "40/5400+30:1800+30"]

1. e4 {[%emt 0:00:00]} c5 {[%emt 0:00:00]} 2. Nf3 {[%emt 0:00:42]} d6 {[%emt 0:00:00]} 3. d4 {[%emt 0:01:04]} cxd4 {[%emt 0:00:00]} 4. Nxd4 {[%emt 0:00:04]} Nf6 {[%emt 0:00:00]} 5. Nc3 {[%emt 0:00:06]} a6 {[%emt 0:00:00]} 6. Be3 {[%emt 0:08:47]} e5 {[%emt 0:00:00]} 7. Nb3 {[%emt 0:00:05]} Be6 {[%emt 0:00:26]} 8. h3 {[%emt 0:00:26]} Nbd7 {[%emt 0:03:06]} 9. f4 {[%emt 0:08:53]} exf4 {[%emt 0:08:06]} 10. Bxf4 {[%emt 0:00:27]} Qb6 {[%emt 0:00:35]} 11. Qe2 {[%emt 0:04:13]} Be7 {[%emt 0:04:21]} 12. O-O-O {[%emt 0:07:01]} O-O {[%emt 0:03:48]} 13. g4 {[%emt 0:02:45]} Ne5 {[%emt 0:21:35]} 14. g5 {[%emt 0:03:21]} Nfd7 {[%emt 0:09:32]} 15. Kb1 {[%emt 0:08:08]} Rac8 {[%emt 0:03:33]} 16. Nd5 {[%emt 0:03:26]} Bxd5 {[%emt 0:05:29]} 17. Rxd5 {[%emt 0:02:13]} f6 {[%emt 0:09:10]} 18. h4 {[%emt 0:11:16]} fxg5 {[%emt 0:11:36]} 19. Be3 {[%emt 0:01:30]} Qd8 {[%emt 0:00:51]} 20. hxg5 {[%emt 0:00:50]} Bxg5 {[%emt 0:01:51]} 21. Bh3 {[%emt 0:00:45]} Bxe3 {[%emt 0:02:39]} 22. Qxe3 {[%emt 0:01:07]} Qf6 {[%emt 0:02:29]} 23. Nd4 {[%emt 0:05:22]} Rce8 {[%emt 0:05:05]} 24. Bf5 {[%emt 0:14:20]} g6 {[%emt 0:02:47]} 25. Qh3 {[%emt 0:01:39]} Re7 {[%emt 0:00:56]} 26. Be6+ {[%emt 0:04:44]} Kh8 {[%emt 0:00:19]} 27. Rxd6 {[%emt 0:08:56]} Nc5 {[%emt 0:02:58]} 28. a3 {[%emt 0:01:12]} Nxe4 {[%emt 0:01:26]} 29. Rb6 {[%emt 0:00:33]} Nf2 {[%emt 0:00:28]} 0-1

[Event "SVK ECo-C Extraliga 2018-19"]
[Site "Slovakia"]
[Date "2019.02.16"]
[Round "5"]
[White "Kukel, Imre"]
[Black "Istona, Martin"]
[Result "1-0"]
[ECO "B38"]
[WhiteElo "2292"]
[BlackElo "2269"]
[Annotator "NA"]
[PlyCount "69"]
[EventDate "2018.11.10"]
[EventType "team-tourn"]
[EventCountry "SVK"]
[SourceTitle "playchess.com"]
[Source "ChessBase"]
[SourceQuality "1"]
[WhiteTeam "Komarno"]
[BlackTeam "Osuske"]
[TimeControl "40/5400+30:1800+30"]

1. e4 {[%emt 0:00:00]} c5 {[%emt 0:00:00]} 2. Nf3 {[%emt 0:00:00]} Nc6 {[%emt 0:00:29]} 3. d4 {[%emt 0:00:00]} cxd4 {[%emt 0:00:07]} 4. Nxd4 {[%emt 0:00:00]} g6 {[%emt 0:00:30]} 5. c4 {[%emt 0:00:00]} Bg7 {[%emt 0:00:07]} 6. Be3 {[%emt 0:00:00]} Nf6 {[%emt 0:00:12]} 7. Nc3 {[%emt 0:00:00]} d6 {[%emt 0:01:01]} 8. Be2 {[%emt 0:00:13]} O-O {[%emt 0:00:18]} 9. O-O {[%emt 0:00:03]} Nxd4 {[%emt 0:01:47]} 10. Bxd4 {[%emt 0:01:00]} Bd7 {[%emt 0:00:12]} 11. Qd2 {[%emt 0:10:29]} a5 {[%emt 0:01:29]} 12. b3 {[%emt 0:00:20]} Bc6 {[%emt 0:01:48]} 13. f3 {[%emt 0:00:41]} Nd7 {[%emt 0:00:24]} 14. Be3 {[%emt 0:00:15]} Nc5 {[%emt 0:01:09]} 15. Rab1 {[%emt 0:04:50]} Be5 {[%emt 0:00:42]} 16. Nd5 {[%emt 0:13:33]} e6 {[%emt 0:39:16]} 17. Nf4 {[%emt 0:03:02]} Qe7 {[%emt 0:02:42]} 18. a3 {[%emt 0:17:18]} a4 {[%emt 0:11:08]} 19. b4 {[%emt 0:03:22]} Nb3 {[%emt 0:00:21]} 20. Qd3 {[%emt 0:00:39]} Qf6 {[%emt 0:02:07]} 21. g3 {[%emt 0:09:00]} Rfc8 {[%emt 0:14:33]} 22. Bd1 {[%emt 0:06:11]} Bd4 {[%emt 0:18:25]} 23. Bxb3 {[%emt 0:19:10]} Bxe3+ {[%emt 0:00:07]} 24. Qxe3 {[%emt 0:00:07]} axb3 {[%emt 0:00:06]} 25. Rxb3 {[%emt 0:00:08]} g5 {[%emt 0:01:55]} 26. Nh3 {[%emt 0:02:59]} h6 {[%emt 0:00:59]} 27. Nf2 {[%emt 0:01:06]} b5 {[%emt 0:00:53]} 28. c5 {[%emt 0:01:07]} dxc5 {[%emt 0:00:33]} 29. bxc5 {[%emt 0:00:03]} Ra4 {[%emt 0:00:31]} 30. Rb4 {[%emt 0:02:51]} Rxb4 {[%emt 0:00:27]} 31. axb4 {[%emt 0:00:01]} Qb2 {[%emt 0:00:39]} 32. Nd3 {[%emt 0:00:01]} Qb3 {[%emt 0:00:28]} 33. Qd4 {[%emt 0:00:07]} Ra8 {[%emt 0:00:30]} 34. Ne5 {[%emt 0:04:34]} Be8 {[%emt 0:00:31]} 35. Ng4 {[%emt 0:00:04]} 1-0

[Event "SVK ECo-C Extraliga 2018-19"]
[Site "Slovakia"]
[Date "2019.02.16"]
[Round "5"]
[White "Karas, Marek"]
[Black "Bottyan, Peter"]
[Result "1-0"]
[ECO "A40"]
[WhiteElo "2261"]
[BlackElo "2194"]
[Annotator "NA"]
[PlyCount "67"]
[EventDate "2018.11.10"]
[EventType "team-tourn"]
[EventCountry "SVK"]
[SourceTitle "playchess.com"]
[Source "ChessBase"]
[SourceQuality "1"]
[WhiteTeam "Osuske"]
[BlackTeam "Komarno"]
[TimeControl "40/5400+30:1800+30"]

1. d4 {[%emt 0:00:00]} g6 {[%emt 0:00:00]} 2. Nf3 {[%emt 0:01:13]} Bg7 {[%emt 0:00:11]} 3. e4 {[%emt 0:00:27]} c5 {[%emt 0:00:26]} 4. c3 {[%emt 0:01:38]} cxd4 {[%emt 0:05:27]} 5. cxd4 {[%emt 0:00:14]} Nc6 {[%emt 0:04:28]} 6. Nc3 {[%emt 0:01:04]} d6 {[%emt 0:04:20]} 7. h3 {[%emt 0:01:42]} Nf6 {[%emt 0:06:06]} 8. Be2 {[%emt 0:05:22]} O-O {[%emt 0:12:39]} 9. O-O {[%emt 0:00:54]} d5 {[%emt 0:03:44]} 10. e5 {[%emt 0:03:26]} Ne4 {[%emt 0:00:28]} 11. Be3 {[%emt 0:01:21]} Nxc3 {[%emt 0:09:10]} 12. bxc3 {[%emt 0:00:03]} Na5 {[%emt 0:07:23]} 13. Qc1 {[%emt 0:04:01]} Re8 {[%emt 0:03:06]} 14. Bh6 {[%emt 0:02:08]} Bh8 {[%emt 0:00:24]} 15. Qf4 {[%emt 0:00:46]} Qc7 {[%emt 0:14:02]} 16. Qh4 {[%emt 0:03:10]} f5 {[%emt 0:06:58]} 17. exf6 {[%emt 0:04:33]} exf6 {[%emt 0:01:20]} 18. Rfe1 {[%emt 0:02:28]} Bd7 {[%emt 0:03:05]} 19. Rac1 {[%emt 0:03:16]} Nc4 {[%emt 0:01:21]} 20. Bf4 {[%emt 0:02:34]} Qc6 {[%emt 0:01:04]} 21. Qg3 {[%emt 0:01:28]} Bg7 {[%emt 0:01:42]} 22. h4 {[%emt 0:04:41]} Re6 {[%emt 0:04:38]} 23. Bd3 {[%emt 0:02:40]} Rxe1+ {[%emt 0:00:36]} 24. Nxe1 {[%emt 0:02:58]} Re8 {[%emt 0:01:27]} 25. Nc2 {[%emt 0:03:09]} a5 {[%emt 0:01:05]} 26. Ne3 {[%emt 0:01:50]} Nxe3 {[%emt 0:00:42]} 27. Bxe3 {[%emt 0:00:24]} Re7 {[%emt 0:03:00]} 28. c4 {[%emt 0:01:13]} Kh8 {[%emt 0:01:15]} 29. cxd5 {[%emt 0:04:44]} Qxd5 {[%emt 0:00:08]} 30. Rc7 {[%emt 0:00:54]} Bf8 {[%emt 0:02:02]} 31. Bc4 {[%emt 0:04:17]} Qe4 {[%emt 0:00:26]} 32. Qd6 {[%emt 0:02:02]} Rf7 {[%emt 0:02:28]} 33. Qb6 {[%emt 0:00:59]} Kg7 {[%emt 0:00:46]} 34. Bxf7 {[%emt 0:00:12]} 1-0